[Event "10th Norway Chess 2022"]
[Site "Stavanger"]
[Date "2022.05.31"]
[Round "1.1"]
[White "Carlsen, Magnus"]
[Black "Wang, Hao"]
[Result "1/2-1/2"]
[ECO "D02"]
[WhiteElo "2864"]
[BlackElo "2744"]
[Annotator "TA"]
[PlyCount "93"]
[EventDate "2022.05.30"]
[EventType "tourn"]
[EventCountry "NOR"]
[SourceTitle "playchess.com"]
[Source "ChessBase"]
[SourceQuality "1"]
[TimeControl "40/7200:0"]

{[%evp 9,93,21,43,43,44,45,42,42,42,42,43,32,49,49,81,77,91,91,105,102,101,88,88,83,108,120,120,58,65,64,58,58,60,26,44,43,46,0,32,0,0,0,0,0,0,0,0,0,0,0,0,0,0,0,0,0,0,0,0,0,0,0,44,44,44,44,44,3,3,3,3,3,3,3,3,3,3,3,3,3,3,3,3,3,3,3]} 1. Nf3 {[%emt 0:00:04]} d5 {[%emt 0:00:25]} 2. g3 {[%emt 0:00:16]} Nd7 {[%emt 0:03:39]} 3. d4 {[%emt 0:01:11]} Nb6 {[%emt 0:00:03]} 4. b3 {[%emt 0:09:13]} Bf5 {[%emt 0:01:16] [#]} 5. Nh4 $146 {[%emt 0:06:23]} ({Predecessor:} 5. Ba3 h6 6. Bg2 Nf6 7. O-O g5 8. c4 Bg7 9. Nc3 Ne4 10. Rc1 c6 11. cxd5 Nxc3 12. Rxc3 Nxd5 {0-1 (46) Demidov,M (2551)-Khusnutdinov,R (2484) Chess.com INT 2021}) 5... e6 {[%emt 0:19:00]} 6. Nxf5 {[%emt 0:00:40] D02: 1 d4 d5 2 Nf3 sidelines, including 2...Nf6 3 g3 and 2...Nf6 3 Bf4.} exf5 {[%emt 0:00:06]} 7. Qd3 {[%emt 0:02:16]} g6 {[%emt 0:01:32]} 8. Bg2 {[%emt 0:01:16] White is slightly better.} Nf6 {[%emt 0:01:37]} 9. O-O {[%emt 0:03:22]} Be7 {[%emt 0:07:23]} 10. c4 {[%emt 0:07:05]} c6 {[%emt 0:00:57]} 11. Bh6 {[%emt 0:05:59]} Bf8 {[%emt 0:08:50]} 12. Bg5 {[%emt 0:01:53] Black must now prevent Qe3+. A strong pair of Bishops.} Be7 {[%emt 0:00:33]} 13. a4 {[%emt 0:06:26]} a5 {[%emt 0:30:42]} 14. Nc3 {[%emt 0:03:50]} O-O {[%emt 0:02:41]} 15. Bxf6 {[%emt 0:00:36] White is more active.} (15. Rfc1 {seems wilder.} Qc8 16. e3 Rd8 17. h4) 15... Bxf6 {[%emt 0:00:07]} 16. cxd5 {[%emt 0:00:13]} Nxd5 {[%emt 0:00:05]} 17. Nxd5 {[%emt 0:05:40]} cxd5 {[%emt 0:00:14]} 18. e3 {[%emt 0:00:27]} (18. Rfc1 $16) 18... Qd7 $1 $14 {[%emt 0:00:28]} 19. Qb5 {[%emt 0:00:33]} Rfd8 {[%emt 0:00:39]} 20. Rfc1 {[%emt 0:00:56]} Be7 $1 {[%emt 0:00:37] Inhibits Rc5.} 21. Rc2 {[%emt 0:00:37]} (21. Qb6 $5 {[%cal Rc1c7]}) 21... Kg7 {[%emt 0:03:14]} 22. Qb6 {[%emt 0:10:26]} Qe6 {[%emt 0:02:56]} 23. Qb5 {[%emt 0:01:36]} Qd7 {[%emt 0:03:04] Inhibits Rc7.} 24. Qf1 {[%emt 0:05:30]} Ra6 {[%emt 0:03:09]} 25. Bf3 {[%emt 0:04:53]} Rb6 {[%emt 0:02:46] Prevents Qb5.} 26. Qd3 {[%emt 0:00:23]} Qe6 {[%emt 0:00:44]} 27. Kg2 {[%emt 0:00:38]} h5 {[%emt 0:00:31]} 28. h4 {[%emt 0:00:08]} Bb4 {[%emt 0:00:36]} 29. Kg1 {[%emt 0:02:12]} Be7 {[%emt 0:00:20]} 30. Rb1 {[%emt 0:00:08]} Bb4 {[%emt 0:00:23]} 31. Qf1 {[%emt 0:00:29]} Rc6 {[%emt 0:02:45]} 32. Rxc6 {[%emt 0:01:54]} bxc6 {[%emt 0:00:44]} 33. Rc1 {[%emt 0:00:20][%cal Bb1c1,Bc1c7,Bc7b7,Bb7b5][%mdl 32]} Rd6 {[%emt 0:04:12]} 34. Kg2 {[%emt 0:01:03]} Qe7 {[%emt 0:01:03]} 35. Qa6 {[%emt 0:02:20]} c5 {[%emt 0:00:13]} 36. Qd3 {[%emt 0:00:10]} cxd4 {[%emt 0:00:07]} 37. Qxd4+ {[%emt 0:00:30]} Qf6 {[%emt 0:00:05]} 38. Rc7 {[%emt 0:00:11]} Qxd4 {[%emt 0:00:49] The position is equal.} 39. exd4 $11 {[%emt 0:00:02][%mdl 4096] Endgame KRB-KRB} Kf6 {[%emt 0:00:39]} 40. Rb7 {[%emt 0:00:00]} Ke6 {[%emt 0:00:28]} 41. Rb5 {[%emt 2:00:01]} Rd8 {[%emt 2:00:34]} 42. Kf1 {[%emt 0:00:00]} Rd6 {[%emt 0:00:06]} 43. Ke2 {[%emt 0:00:06]} Rd8 {[%emt 0:00:04]} 44. Rb7 {[%emt 0:00:14]} Bc3 {[%emt 0:01:49]} 45. Kd3 {[%emt 0:00:34]} Be1 {[%emt 0:00:09]} 46. Ke3 {[%emt 0:00:10]} Bb4 {[%emt 0:00:32]} 47. Rb5 {[%emt 0:00:51] Weighted Error Value: White=0.06 (flawless) /Black=0.04 (flawless)} 1/2-1/2

[Event "10th Norway Chess 2022"]
[Site "Stavanger"]
[Date "2022.05.31"]
[Round "1.1"]
[White "Mamedyarov, Shakhriyar"]
[Black "Tari, Aryan"]
[Result "1/2-1/2"]
[ECO "E39"]
[WhiteElo "2770"]
[BlackElo "2654"]
[Annotator "TA"]
[PlyCount "55"]
[EventDate "2022.05.30"]
[EventType "tourn"]
[EventCountry "NOR"]
[SourceTitle "playchess.com"]
[Source "ChessBase"]
[SourceQuality "1"]
[TimeControl "40/7200:0"]

{[%evp 16,55,9,9,6,6,10,13,10,10,7,8,10,0,14,19,19,11,12,8,8,19,23,18,36,0,0,0,0,0,0,0,0,0,0,0,0,0,0,0,6,0]} 1. d4 {[%emt 0:00:03]} Nf6 {[%emt 0:00:24]} 2. c4 {[%emt 0:00:11]} e6 {[%emt 0:00:06]} 3. Nc3 {[%emt 0:01:03]} Bb4 {[%emt 0:00:20]} 4. Nf3 {[%emt 0:00:08]} O-O {[%emt 0:00:47]} 5. Qc2 {[%emt 0:00:21]} c5 {[%emt 0:04:00]} 6. dxc5 {[%emt 0:00:12]} Na6 {[%emt 0:00:29][%cal Bb8a6,Ba6c5,Bc5e4][%mdl 32]} 7. g3 {[%emt 0:01:41]} Nxc5 {[%emt 0:00:19]} 8. Bg2 {[%emt 0:00:04]} Nce4 {[%emt 0:00:40]} 9. O-O {[%emt 0:00:50][%cal Bh1f1,Bf1b1,Bb1b5][%mdl 32]} Bxc3 {[%emt 0:00:15] E39: Nimzo-Indian: Classical: 4...c5 5 dxc5 0-0.} 10. bxc3 {[%emt 0:00:05]} Qc7 {[%emt 0:00:34]} 11. Nd4 {[%emt 0:00:13]} d5 {[%emt 0:00:38]} 12. cxd5 {[%emt 0:00:07]} exd5 {[%emt 0:00:24]} 13. Bf4 {[%emt 0:00:09]} Qc5 {[%emt 0:02:07]} 14. Rfb1 {[%emt 0:02:04] [#]} b6 $146 {[%emt 0:10:16]} ({Predecessor:} 14... Re8 15. a4 b6 16. a5 Bd7 17. Be3 bxa5 18. Nb5 Qc6 19. Rxa5 Ng4 20. Bxe4 Rxe4 21. Bxa7 Rae8 22. Nd4 Qh6 23. h4 Nxf2 24. Kxf2 Rxh4 25. gxh4 Qe3+ {½-½ (25) Schwedek,T-Thelen,A (2292) GER email 2015}) 15. Rb5 {[%emt 0:04:55]} Qxc3 {[%emt 0:18:44]} 16. Qxc3 {[%emt 0:00:42]} Nxc3 {[%emt 0:00:06] Pair of Knights!} 17. Rb3 {[%emt 0:00:05]} Nce4 {[%emt 0:03:25]} 18. a4 {[%emt 0:01:14]} Bd7 {[%emt 0:03:28]} 19. a5 {[%emt 0:07:45]} Rfc8 {[%emt 0:06:02]} 20. axb6 {[%emt 0:22:14]} axb6 {[%emt 0:00:12] The position is equal.} 21. Rxa8 {[%emt 0:00:14]} Rxa8 {[%emt 0:00:06]} 22. Rxb6 {[%emt 0:00:34]} Ra1+ {[%emt 0:10:03]} 23. Bf1 {[%emt 0:00:11]} h6 {[%emt 0:06:51]} 24. Nc2 {[%emt 0:02:56]} Ra2 {[%emt 0:01:49]} 25. Nb4 {[%emt 0:01:42]} Ra1 {[%emt 0:00:51]} 26. Nc2 {[%emt 0:00:57]} Ra2 {[%emt 0:00:05]} 27. Nb4 {[%emt 0:00:14]} Ra1 {[%emt 0:00:05] [#] ( -> ...Bh3)} 28. Nc2 {[%emt 0:00:04] An even fight not without its subleties.  Weighted Error Value: White=0.03 (flawless) /Black=0.02 (flawless)} 1/2-1/2

[Event "10th Norway Chess 2022"]
[Site "Stavanger"]
[Date "2022.05.31"]
[Round "1.1"]
[White "So, Wesley"]
[Black "Radjabov, Teimour"]
[Result "1-0"]
[ECO "C54"]
[WhiteElo "2766"]
[BlackElo "2753"]
[Annotator "TA"]
[PlyCount "75"]
[EventDate "2022.05.30"]
[EventType "tourn"]
[EventCountry "NOR"]
[SourceTitle "playchess.com"]
[Source "ChessBase"]
[SourceQuality "1"]
[TimeControl "40/7200:0"]

{[%evp 10,75,25,14,18,8,17,18,10,10,26,13,18,9,27,11,11,18,16,17,20,14,8,19,43,26,41,4,46,46,45,26,99,69,104,71,129,120,117,117,151,149,156,166,190,136,136,136,147,146,144,142,149,128,177,172,173,173,176,172,185,177,363,354,363,358,356,361]} 1. e4 {[%emt 0:01:00]} e5 {[%emt 0:00:08]} 2. Nf3 {[%emt 0:00:14]} Nc6 {[%emt 0:00:06]} 3. Bc4 {[%emt 0:00:08]} Bc5 {[%emt 0:00:10]} 4. O-O {[%emt 0:00:20]} Nf6 {[%emt 0:00:25]} 5. d3 {[%emt 0:00:05]} d6 {[%emt 0:00:36]} (5... O-O 6. Bg5 h6 7. Bh4 Be7 8. Bg3 d6 9. a4 Nh7 10. Nc3 Ng5 11. Nd2 Ne6 12. Nd5 Bg5 13. Nf3 Ne7 14. h4 Bf4 15. Bxf4 exf4 16. Nxe7+ Qxe7 17. d4 g5 18. Nh2 gxh4 19. Re1 Kh8 {0-1 (25) So,W (2778)-Radjabov,T (2763) chess24.com INT 2021}) 6. c3 {[%emt 0:00:17]} a5 {[%emt 0:01:23] 6...h6 is the modern continuation. C54: Giuoco Piano: 4 c3 Nf6, main lines with 5 d4 and 5 d3.} 7. Re1 {[%emt 0:00:18]} O-O {[%emt 0:00:45]} 8. h3 {[%emt 0:00:29]} h6 {[%emt 0:00:54] The position is equal.} 9. Nbd2 {[%emt 0:01:54]} Be6 {[%emt 0:01:01]} 10. Bb5 {[%emt 0:00:06]} Nd7 {[%emt 0:00:56]} 11. Nf1 {[%emt 0:03:05] Threatening d4.} d5 {[%emt 0:01:11]} (11... f5 {seems wilder.} 12. exf5 Bxf5 13. Ng3 Bh7) 12. Be3 {[%emt 0:04:34]} dxe4 {[%emt 0:06:16]} 13. dxe4 {[%emt 0:00:07] [#]} Qe7 $146 {[%emt 0:03:18]} ({Predecessor:} 13... Qf6 14. Qe2 Rfd8 15. Red1 Bf8 16. Ng3 a4 17. Nh2 Qg6 18. Ng4 Bd6 19. Bc4 Bxc4 20. Qxc4 {½-½ (36) Dominguez Perez,L (2753)-So,W (2776) Bucharest 2022}) 14. Qe2 {[%emt 0:09:17]} Rfd8 {[%emt 0:13:55]} 15. Red1 {[%emt 0:03:21]} a4 {[%emt 0:11:01]} 16. Qc2 {[%emt 0:09:21]} a3 {[%emt 0:06:14]} 17. b4 {[%emt 0:01:05]} Bd6 {[%emt 0:01:47]} 18. N1d2 {[%emt 0:07:28]} Nb6 {[%emt 0:13:36]} 19. Bxb6 {[%emt 0:07:36]} cxb6 {[%emt 0:00:06]} 20. Bc4 {[%emt 0:00:14]} Rdc8 {[%emt 0:09:24]} (20... Rac8 $11 {keeps the balance.}) 21. Qd3 {[%emt 0:07:23]} Nd8 {[%emt 0:07:36][%cal Bc6d8,Bd8f7,Bf7d6,Bd6f5][%mdl 32]} 22. Bxe6 {[%emt 0:11:17]} Qxe6 {[%emt 0:01:19]} (22... Nxe6 $142 23. Nc4 Bc7) 23. Nf1 $1 $16 {[%emt 0:00:31][%cal Bd2f1,Bf1e3,Be3d5][%mdl 32]} Bf8 {[%emt 0:00:10]} 24. Ne3 {[%emt 0:00:16]} f6 {[%emt 0:04:42]} 25. Nd5 {[%emt 0:02:59]} Nf7 {[%emt 0:01:21]} 26. Nd2 {[%emt 0:04:45] White is more active.} Ra6 {[%emt 0:07:54]} 27. Rab1 {[%emt 0:02:09]} (27. c4 $18) 27... b5 {[%emt 0:05:56]} 28. Qxb5 {[%emt 0:11:00]} Nd6 {[%emt 0:00:04]} 29. Qd3 {[%emt 0:01:31] Hoping for c4.} b5 {[%emt 0:00:04] Inhibits c4.} 30. Rbc1 {[%emt 0:00:07][%cal Bb1c1,Bc1c2,Bc2e2,Be2e6][%mdl 32]} Rac6 {[%emt 0:01:21] Prevents c4.} 31. Rc2 {[%emt 0:03:30]} f5 {[%emt 0:03:20] [#]} (31... Kh8 $16 32. Nb3 Rb8) 32. exf5 $1 $18 {[%emt 0:03:08]} Nxf5 {[%emt 0:00:03][%cal Of5d4] [#]} 33. Nb3 {[%emt 0:00:05][%cal Bd2b3,Bb3a5,Ba5c4,Bc4a3][%mdl 32] Prevents Nd4.} ({But not} 33. Qxb5 $2 Nd4 34. cxd4 Rxc2 35. dxe5 Qxe5 $19) 33... Rc4 {[%emt 0:10:26][%cal Of5d4]} 34. Na5 {[%emt 0:05:14]} e4 {[%emt 0:00:04]} 35. Re2 {[%emt 0:02:12] And now Qb1 would win.} Re8 $2 {[%emt 0:02:25]} (35... exd3 {keeps fighting.} 36. Rxe6 Rxc3 37. Nxc3 Rxc3) 36. Nxc4 {[%emt 0:00:24] Pair of Knights! White is winning.} exd3 {[%emt 0:00:00]} 37. Rxe6 {[%emt 0:00:03]} Rxe6 {[%emt 0:00:01]} 38. Nxa3 {[%emt 0:00:02] Weighted Error Value: White=0.07 (flawless) /Black=0.20 (precise)} 1-0

[Event "10th Norway Chess 2022"]
[Site "Stavanger"]
[Date "2022.05.31"]
[Round "1.1"]
[White "Giri, Anish"]
[Black "Topalov, Veselin"]
[Result "1/2-1/2"]
[ECO "E11"]
[WhiteElo "2761"]
[BlackElo "2730"]
[Annotator "TA"]
[PlyCount "63"]
[EventDate "2022.05.30"]
[EventType "tourn"]
[EventCountry "NOR"]
[SourceTitle "playchess.com"]
[Source "ChessBase"]
[SourceQuality "1"]
[TimeControl "40/7200:0"]

{[%evp 16,63,18,0,0,0,0,0,11,4,8,0,0,0,3,12,8,0,10,0,0,0,0,0,0,0,0,0,0,0,0,0,54,0,0,-21,-3,-3,-3,-10,-1,-1,-1,-1,-1,-1,-1,-1,-1,-1]} 1. d4 {[%emt 0:00:02]} Nf6 {[%emt 0:00:11]} 2. c4 {[%emt 0:00:06]} e6 {[%emt 0:00:09]} 3. Nf3 {[%emt 0:00:07]} d5 {[%emt 0:00:13]} 4. g3 {[%emt 0:00:05]} Bb4+ {[%emt 0:00:17]} 5. Bd2 {[%emt 0:00:06]} Be7 {[%emt 0:00:08]} 6. Bg2 {[%emt 0:00:29]} O-O {[%emt 0:00:18]} 7. O-O {[%emt 0:00:47]} Nbd7 {[%emt 0:00:57]} 8. Qc2 {[%emt 0:01:18]} c6 {[%emt 0:00:26]} 9. Bf4 {[%emt 0:00:19]} b6 {[%emt 0:01:45] E11: Bogo-Indian.} 10. Nbd2 {[%emt 0:00:18]} Nh5 {[%emt 0:10:29]} 11. e3 $1 {[%emt 0:00:58][%mdl 4] outshines the older 11.Be3.} Nxf4 {[%emt 0:02:53]} 12. exf4 {[%emt 0:01:04]} Bb7 {[%emt 0:03:50]} 13. cxd5 {[%emt 0:02:23]} cxd5 {[%emt 0:00:14]} 14. Rfc1 {[%emt 0:00:57]} Rc8 {[%emt 0:05:20] [#]} 15. Qa4 $146 {[%emt 0:02:22]} ({Predecessor:} 15. Qd1 Rxc1 16. Rxc1 Qb8 17. Bf1 Rc8 18. Bb5 Rxc1 19. Qxc1 Qc8 20. Qxc8+ Bxc8 21. Kf1 {0-1 (58) Giri,A (2764)-Van Foreest,J (2682) chess24.com INT 2020}) 15... a6 {[%emt 0:02:12]} 16. Qb3 {[%emt 0:09:02]} b5 {[%emt 0:04:46]} 17. Rxc8 {[%emt 0:05:33]} Qxc8 {[%emt 0:00:37]} 18. a4 {[%emt 0:00:18]} bxa4 {[%emt 0:05:17]} 19. Qxa4 {[%emt 0:07:20]} Nb6 {[%emt 0:01:36]} 20. Qd1 {[%emt 0:02:24]} Nc4 {[%emt 0:05:11]} 21. Rc1 {[%emt 0:15:31]} Qb8 {[%emt 0:04:14]} (21... Nxb2 $2 22. Rxc8 Nxd1 23. Rc7 $18) 22. Nxc4 {[%emt 0:06:06]} dxc4 {[%emt 0:00:31]} 23. Qe2 {[%emt 0:01:33]} Bf6 {[%emt 0:06:57]} (23... Bd5 $11) 24. Rxc4 {[%emt 0:01:44]} ({White should play} 24. Ne5 $14 Bxe5 25. dxe5) 24... Bd5 {[%emt 0:04:05] A strong pair of Bishops. The position is equal.} 25. Rc1 {[%emt 0:05:04]} Bxf3 {[%emt 0:00:39]} 26. Bxf3 {[%emt 0:00:11]} (26. Qxf3 {feels hotter.} Qxb2 27. Rc6 Bxd4 28. Rxa6 g6 29. Ra8) 26... Bxd4 {[%emt 0:00:00]} 27. Ra1 {[%emt 0:00:35]} Qxb2 {[%emt 0:00:15]} 28. Qxb2 {[%emt 0:00:01]} Bxb2 {[%emt 0:00:11]} 29. Rxa6 {[%emt 0:00:29]} g6 {[%emt 0:01:09]} 30. Kg2 {[%emt 0:10:55]} Kg7 {[%emt 0:00:39]} 31. Ra8 {[%emt 0:00:12]} Rxa8 {[%emt 0:00:06]} 32. Bxa8 {[%emt 0:00:03] An interesting draw.  Weighted Error Value: White=0.06 (flawless) /Black=0.07 (flawless)} 1/2-1/2

[Event "10th Norway Chess 2022"]
[Site "Stavanger"]
[Date "2022.05.31"]
[Round "1.1"]
[White "Anand, Viswanathan"]
[Black "Vachier-Lagrave, Maxime"]
[Result "1-0"]
[ECO "B52"]
[WhiteElo "2751"]
[BlackElo "2750"]
[Annotator "TA"]
[PlyCount "79"]
[EventDate "2022.05.30"]
[EventType "tourn"]
[EventCountry "NOR"]
[SourceTitle "playchess.com"]
[Source "ChessBase"]
[SourceQuality "1"]
[TimeControl "40/7200:0"]

{[%evp 21,79,21,27,20,14,0,23,3,21,15,18,0,25,22,69,67,66,58,64,75,76,74,79,75,79,81,74,74,61,61,85,68,131,136,137,140,141,138,164,156,147,166,164,163,148,152,145,152,183,180,185,176,290,216,221,221,224,203,194,196]} 1. e4 {[%emt 0:00:06]} c5 {[%emt 0:00:03]} 2. Nf3 {[%emt 0:00:09]} d6 {[%emt 0:00:03]} 3. Bb5+ {[%emt 0:00:11]} Bd7 {[%emt 0:00:03]} 4. Bxd7+ {[%emt 0:00:10]} Qxd7 {[%emt 0:00:03]} 5. c4 {[%emt 0:00:11]} Nf6 {[%emt 0:00:47]} 6. Nc3 {[%emt 0:00:13]} Nc6 {[%emt 0:00:04]} 7. d4 {[%emt 0:00:21]} cxd4 {[%emt 0:00:03]} 8. Nxd4 {[%emt 0:00:08]} g6 {[%emt 0:00:03]} 9. f3 {[%emt 0:00:38]} Bg7 {[%emt 0:00:07]} 10. Be3 {[%emt 0:00:08]} O-O {[%emt 0:00:07]} 11. O-O {[%emt 0:00:13]} a6 {[%emt 0:04:14]} 12. Nb3 $5 {[%emt 0:02:33][%mdl 4] [#] Exploring less charted territory. B52: Sicilian: Moscow Variation with 3...Bd7.} e6 $146 {[%emt 0:12:15]} ({Predecessor:} 12... Rac8 13. Na4 Qe8 14. Nb6 Rd8 15. Qe2 Nd7 16. Na4 Nce5 17. Rac1 Nd3 18. Qxd3 Ne5 19. Qb1 Qxa4 20. Nd4 Rc8 21. b3 Qa5 22. Rf2 Nc6 23. Nxc6 Rxc6 24. Qd3 {½-½ (24) Wilhelmi,D (2473)-Tleptsok,R (2448) ICCF email 2013}) 13. Qe2 {[%emt 0:07:32]} Qe7 {[%emt 0:01:13]} 14. Rfd1 {[%emt 0:04:36] White has an edge.} Rfd8 {[%emt 0:03:21]} 15. Rac1 {[%emt 0:06:16]} Rac8 {[%emt 0:00:34]} 16. Nd4 {[%emt 0:06:52]} Nd7 {[%emt 0:19:47]} 17. b3 {[%emt 0:03:22]} b5 {[%emt 0:05:35]} (17... Bxd4 $11 18. Bxd4 Nxd4 19. Rxd4 Ne5) 18. cxb5 $14 {[%emt 0:08:29]} Nxd4 {[%emt 0:00:08]} 19. Bxd4 {[%emt 0:00:10]} Bxd4+ {[%emt 0:00:19]} 20. Rxd4 {[%emt 0:01:58]} axb5 {[%emt 0:00:27][%cal Ob5b4] Strongly threatening ...b4!} 21. Qd2 {[%emt 0:07:08]} Rb8 {[%emt 0:11:00]} 22. Rxd6 {[%emt 0:04:51]} b4 {[%emt 0:00:06]} 23. Ne2 $36 {[%emt 0:03:04][%mdl 2048] White is in control. White is more active.} Ne5 {[%emt 0:01:15]} 24. Rd1 {[%emt 0:07:02][%cal Rd6d8]} Nc6 {[%emt 0:02:31] White must now prevent ...Rxd6.} 25. e5 {[%emt 0:00:19][%cal Be4e5,Be5d6][%mdl 32]} (25. Rxc6 Rxd2 26. Rxd2 Rd8 27. Rxd8+ Qxd8 $17) 25... Qa7+ {[%emt 0:01:51] White stays focused until the end.} 26. Kh1 {[%emt 0:05:40]} Qf2 {[%emt 0:09:47]} ({Black should try} 26... Qa5 $14) 27. Rc1 $16 {[%emt 0:01:41]} Rxd6 {[%emt 0:00:30]} 28. exd6 {[%emt 0:00:08]} (28. Qxd6 Rd8 29. Qxc6 Qxe2 $15) 28... Ne5 {[%emt 0:00:09]} 29. h3 {[%emt 0:01:06]} Rb5 {[%emt 0:08:54] [#]} 30. f4 $1 {[%emt 0:13:23]} ({Inferior is} 30. d7 Nxd7 31. Qxd7 Qxe2 $11) (30. Rc8+ Kg7 31. Qb2 (31. d7 Nxd7 32. Qxd7 Qxe2 $11) 31... Kh6 $11) 30... Nd7 {[%emt 0:00:47] [#]} 31. Qd4 {[%emt 0:01:09]} Qxd4 {[%emt 0:00:18]} (31... Qxe2 $2 {gets mated.} 32. Rc8+ Nf8 {[#]} 33. Rxf8+ $1 {[%mdl 512]} Kxf8 34. Qh8#) 32. Nxd4 $18 {[%emt 0:00:11][%mdl 4096] Endgame KRN-KRN} Rd5 {[%emt 0:00:03]} 33. Nc6 {[%emt 0:02:27] aiming for Ne7+.} Rxd6 {[%emt 0:00:24]} 34. Nxb4 {[%emt 0:00:14]} e5 {[%emt 0:02:18]} 35. fxe5 {[%emt 0:00:54]} Nxe5 {[%emt 0:00:16]} 36. Rc5 {[%emt 0:00:10]} Rd1+ {[%emt 0:00:25]} 37. Kh2 {[%emt 0:00:07]} f6 {[%emt 0:01:10] White is clearly better.} 38. a4 {[%emt 0:05:52]} Rb1 {[%emt 0:00:54]} 39. Rc3 {[%emt 0:01:08] Threatens to win with Nc2.} Ra1 {[%emt 0:01:20]} 40. Rc7 {[%emt 0:00:42] Weighted Error Value: White=0.04 (flawless) /Black=0.12 (very precise)} 1-0

[Event "10th Norway Chess 2022"]
[Site "Stavanger"]
[Date "2022.06.01"]
[Round "2.1"]
[White "So, Wesley"]
[Black "Carlsen, Magnus"]
[Result "1/2-1/2"]
[ECO "D46"]
[WhiteElo "2766"]
[BlackElo "2864"]
[Annotator "TA"]
[PlyCount "75"]
[EventDate "2022.05.30"]
[EventType "tourn"]
[EventCountry "NOR"]
[SourceTitle "playchess.com"]
[Source "ChessBase"]
[SourceQuality "1"]
[TimeControl "40/7200:0"]

{[%evp 16,75,24,6,36,31,41,40,36,27,28,33,33,29,37,43,36,25,26,21,26,26,23,25,33,27,38,18,33,10,57,52,53,59,60,52,60,49,49,49,49,9,31,0,0,0,0,0,0,0,0,0,0,0,0,0,0,0,0,0,0,0]} 1. d4 {[%emt 0:00:16]} d5 {[%emt 0:00:14]} 2. c4 {[%emt 0:00:10]} c6 {[%emt 0:00:09]} 3. Nf3 {[%emt 0:03:57]} Nf6 {[%emt 0:00:15]} 4. Nc3 {[%emt 0:00:04]} e6 {[%emt 0:00:11]} 5. e3 {[%emt 0:05:58]} Nbd7 {[%emt 0:00:24]} 6. Qc2 {[%emt 0:00:05]} Bd6 {[%emt 0:00:19]} 7. Bd3 {[%emt 0:00:08]} O-O {[%emt 0:00:43]} 8. O-O {[%emt 0:00:10]} h6 {[%emt 0:01:09]} 9. b3 {[%emt 0:07:08]} e5 {[%emt 0:00:21] [#] Strongly threatening ...e4. D46: Semi-Slav: 5 e3 Nbd7 6 Bd3, Black avoids the Meran.} 10. cxd5 {[%emt 0:02:54]} Nxd5 {[%emt 0:00:38]} 11. Nxd5 {[%emt 0:01:29]} cxd5 {[%emt 0:00:04] White is slightly better.} 12. dxe5 {[%emt 0:00:06]} Nxe5 {[%emt 0:00:14]} 13. Nxe5 {[%emt 0:00:22]} Bxe5 {[%emt 0:00:03]} 14. Bb2 {[%emt 0:00:06]} Qf6 {[%emt 0:00:13]} 15. Bxe5 {[%emt 0:02:26]} Qxe5 {[%emt 0:00:02]} 16. Rac1 {[%emt 0:01:02]} Bd7 {[%emt 0:00:09]} 17. Qc7 {[%emt 0:06:36]} Qxc7 {[%emt 0:00:08]} 18. Rxc7 {[%emt 0:00:05]} Bc6 {[%emt 0:00:07] [#]} 19. Rc1 $146 {[%emt 0:06:16]} ({Predecessor:} 19. b4 Rac8 20. Rxc8 Rxc8 21. Rc1 Bd7 22. Rxc8+ Bxc8 23. Kf1 Kf8 24. Ke2 Ke7 25. Bb5 {½-½ (43) Demir,B (2099)-Avci,A (1844) Konya 2016}) 19... Rfc8 {[%emt 0:00:34]} 20. Rxc8+ {[%emt 0:00:14]} Rxc8 $14 {[%emt 0:00:02][%mdl 4096] Endgame KRB-KRB} 21. Kf1 {[%emt 0:03:20]} Kf8 {[%emt 0:00:44][%cal Od5d4]} 22. Ke2 {[%emt 0:00:09]} Bd7 {[%emt 0:00:13]} (22... Re8 $11 {was preferrable.}) 23. Rxc8+ {[%emt 0:00:25]} Bxc8 {[%emt 0:00:01] KB-KB} 24. Kd2 {[%emt 0:00:03]} Ke7 {[%emt 0:00:18]} 25. Kc3 {[%emt 0:00:05]} Kd6 {[%emt 0:00:13]} 26. b4 {[%emt 0:00:06]} b6 {[%emt 0:00:14]} 27. Kd4 {[%emt 0:00:05]} a5 {[%emt 0:00:40]} 28. b5 {[%emt 0:01:33]} Bd7 {[%emt 0:00:20]} 29. a4 {[%emt 0:00:48]} Bc8 {[%emt 0:00:10] The position is equal.} 30. f4 {[%emt 0:00:03]} f6 {[%emt 0:02:38]} 31. f5 {[%emt 0:02:44]} Bb7 {[%emt 0:00:34]} 32. g3 {[%emt 0:00:14]} Bc8 {[%emt 0:00:09]} 33. Bc2 {[%emt 0:00:06]} Bd7 {[%emt 0:00:15]} 34. g4 {[%emt 0:00:06] [#] Threatens to win with Bb3.} Bc8 {[%emt 0:00:06]} 35. Bb3 {[%emt 0:00:04]} Bb7 {[%emt 0:00:10]} 36. Ba2 {[%emt 0:00:01]} Ba8 {[%emt 0:00:08]} 37. Bb3 {[%emt 0:00:02]} Bb7 {[%emt 0:00:07]} 38. Ba2 {[%emt 0:00:04] Weighted Error Value: White=0.07 (flawless) /Black=0.06 (flawless)} 1/2-1/2